fUSD/lending_fUSD_20260510
["ID","MTS","AMOUNT","RATE_DAILY","PERIOD"]
[421989602,1778418641000,-1000.0,0.00024658,2]
[421989601,1778418641000,-480.0,0.00024,2]
[421989599,1778418641000,-480.0,0.00023,2]
[421989606,1778418641000,-155.58,0.00024658,2]
[421989611,1778418641000,-417.0,0.00025666,2]
[421989622,1778418641000,-193.2,0.000274,7]
[421989610,1778418641000,-6048.0,0.00025666,2]
[421989618,1778418641000,-155.58,0.00027237,2]
[421989583,1778418641000,-480.0,0.0002,2]
[421989603,1778418641000,-177.27,0.00024658,2]
[421989594,1778418641000,-854.0611487,0.00022053,2]
[421989559,1778418641000,-500.0,0.00014849,2]
[421989584,1778418641000,-1321.53,0.00020259,2]
[421989554,1778418641000,-509.26216145,0.00014849,2]
[421989557,1778418641000,-500.0,0.00014849,2]
[421989558,1778418641000,-500.0,0.00014849,2]
[421989556,1778418641000,-500.0,0.00014849,2]
[421989555,1778418641000,-500.0,0.00014849,2]
[421989564,1778418641000,-520.16264786,0.00014999,2]
[421989566,1778418641000,-500.0,0.00014999,2]
[421989565,1778418641000,-500.0,0.00014999,2]
[421989563,1778418641000,-500.0,0.00014999,2]
[421989570,1778418641000,-150.0,0.00015183,2]
[421989560,1778418641000,-2949.8117,0.000149,2]
[421989561,1778418641000,-1489.56,0.00014964,2]
[421989568,1778418641000,-837213.0419309,0.00015,2]
[421989586,1778418641000,-153.0,0.00021,2]
[421989567,1778418641000,-500.0,0.00014999,2]
[421989569,1778418641000,-361.99915891,0.00015083,2]
[421989572,1778418641000,-160.0,0.00015466,2]
[421989571,1778418641000,-1615.73,0.00015394,2]
[421989574,1778418641000,-1608.0,0.00015502,2]
[421989575,1778418641000,-221.0,0.00016,2]
[421989573,1778418641000,-250.0,0.00015493,2]
[421989582,1778418641000,-153.0,0.0002,2]
[421989577,1778418641000,-2500.0,0.00016102,2]
[421989579,1778418641000,-761.9,0.000166,2]
[421989576,1778418641000,-150.0,0.00016102,2]
[421989581,1778418641000,-1321.53,0.00019765,2]
[421989578,1778418641000,-608.26262482,0.00016102,2]
[421989580,1778418641000,-854.0611487,0.00018085,2]
[421989562,1778418641000,-219.76976507,0.0001499,2]
[421989616,1778418641000,-155.69,0.00027237,2]
[421989612,1778418641000,-854.0611487,0.0002602,2]
[421989620,1778418641000,-3615.03,0.000274,7]
[421989665,1778418641000,-150.0,0.00032299,2]
[421989659,1778418641000,-2553.431,0.00031666,2]
[421989650,1778418641000,-159.57,0.00030799,30]
[421989661,1778418641000,-417.0,0.00031666,2]
[421989651,1778418641000,-200.0,0.00031385,2]
[421989652,1778418641000,-153.0,0.00031497,30]
[421989653,1778418641000,-480.0,0.00031497,30]
[421989655,1778418641000,-159.73,0.00031607,2]
[421989654,1778418641000,-1000.0,0.000315,7]
[421989657,1778418641000,-189.707202,0.00031653,14]
[421989667,1778418641000,-153.0,0.00032497,30]
[421989677,1778418641000,-177.25,0.00032826,7]
[421989683,1778418641000,-159.73,0.00033419,30]
[421989663,1778418641000,-159.57,0.00031696,2]
[421989681,1778418641000,-2478.28617003,0.00033,3]
[421989669,1778418641000,-480.0,0.00032497,30]
[421989675,1778418641000,-159.57,0.00032592,7]
[421989685,1778418641000,-159.57,0.00033489,30]
[421989673,1778418641000,-159.73,0.00032513,7]
[421989692,1778418641000,-1762.633,0.00033615,36]
[421989689,1778418641000,-480.0,0.00033497,30]
[421989700,1778418641000,-854.0611487,0.00033955,2]
[421989704,1778418641000,-159.57,0.00034385,2]
[421989698,1778418641000,-193.2,0.000337,30]
[421989694,1778418641000,-172.77,0.00033615,36]
[421989696,1778418641000,-3615.03,0.000337,7]
[421989702,1778418641000,-159.73,0.00034326,2]
[421989619,1778418641000,-300.0,0.00027397,2]
[421989687,1778418641000,-153.0,0.00033497,30]
[421989648,1778418641000,-193.2,0.000307,7]
[421989679,1778418641000,-150.0,0.00033,14]
[421989644,1778418641000,-3615.03,0.000305,7]
[421989613,1778418641000,-150.0,0.00026299,2]
[421989649,1778418641000,-159.73,0.000307,30]
[421989621,1778418641000,-174.28,0.000274,7]
[421989614,1778418641000,-155.74,0.00026377,30]
[421989617,1778418641000,-155.74,0.00027237,2]
[421989615,1778418641000,-155.58,0.00026377,30]
[421989623,1778418641000,-500.0,0.000278,7]
[421989629,1778418641000,-578.0,0.000291,2]
[421989626,1778418641000,-417.0,0.00028666,2]
[421989625,1778418641000,-6048.0,0.00028666,2]
[421989624,1778418641000,-361.9991589,0.00027992,2]
[421989630,1778418641000,-7280.51,0.00029138,10]
[421989628,1778418641000,-159.57,0.00029007,2]
[421989633,1778418641000,-500.0,0.00029298,2]
[421989634,1778418641000,-150.0,0.00029299,2]
[421989627,1778418641000,-159.73,0.00028888,2]
[421989643,1778418641000,-480.0,0.00030497,30]
[421989645,1778418641000,-218.4109862,0.0003065,2]
[421989631,1778418641000,-1125.39,0.00029148,2]
[421989646,1778418641000,-218.41098619,0.0003065,2]
[421989642,1778418641000,-153.0,0.00030497,30]
[421989641,1778418641000,-200.0,0.00030391,2]
[421989636,1778418641000,-171.68,0.00029879,2]
[421989638,1778418641000,-177.24,0.00029911,2]
[421989640,1778418641000,-177.25,0.00030019,2]
[421989637,1778418641000,-159.57,0.00029903,7]
[421989647,1778418641000,-257.95495579,0.0003065,2]
[421989632,1778418641000,-500.0,0.00029298,120]
[421989635,1778418641000,-159.73,0.00029794,7]
[421989639,1778418641000,-854.0611487,0.00029988,2]
[421989779,1778418642000,-300.26547527,0.00036906,2]
[421989783,1778418642000,-343.63244301,0.00036906,2]
[421989774,1778418642000,-1065.85133357,0.00036906,2]
[421989776,1778418642000,-399.47373702,0.00036906,2]
[421989775,1778418642000,-892.50225283,0.00036906,2]
[421989778,1778418642000,-300.0,0.00036906,2]
[421989769,1778418642000,-1093.63973599,0.00036906,2]
[421989767,1778418642000,-300.94728086,0.00036906,2]
[421989780,1778418642000,-369.81331436,0.00036906,2]
[421989772,1778418642000,-492.19455268,0.00036906,2]
[421989771,1778418642000,-300.32534007,0.00036906,2]
[421989793,1778418642000,-309.51866284,0.00036906,2]
[421989773,1778418642000,-527.2192813,0.00036906,2]
[421989794,1778418642000,-300.0,0.00036906,2]
[421989800,1778418642000,-1065.85133357,0.00036906,2]
[421989782,1778418642000,-1794.48916065,0.00036906,2]
[421989784,1778418642000,-1146.02256466,0.00036906,2]
[421989786,1778418642000,-863.58946345,0.00036906,2]
[421989787,1778418642000,-310.58625824,0.00036906,2]
[421989791,1778418642000,-300.0,0.00036906,2]
[421989789,1778418642000,-576.59432604,0.00036906,2]
[421989788,1778418642000,-463.38560569,0.00036906,2]
[421989790,1778418642000,-451.46014752,0.00036906,2]
[421989792,1778418642000,-483.59861358,0.00036906,2]
[421989796,1778418642000,-492.19455268,0.00036906,2]
[421989795,1778418642000,-1093.63973599,0.00036906,2]
[421989805,1778418642000,-300.0,0.00036906,2]
[421989807,1778418642000,-853.32651933,0.00036906,2]
[421989781,1778418642000,-853.32651933,0.00036906,2]
[421989785,1778418642000,-309.2779459,0.00036906,2]
[421989777,1778418642000,-301.4896953,0.00036906,2]
[421989706,1778418642000,-153.0,0.00034497,30]
[421989766,1778418642000,-483.59861358,0.00036906,2]
[421989708,1778418642000,-480.0,0.00034497,30]
[421989806,1778418642000,-300.26547527,0.00036906,2]
[421989710,1778418642000,-398.38121662,0.000345,5]
[421989712,1778418642000,-183.70581575,0.000345,5]
[421989715,1778418642000,-417.0,0.00034666,2]
[421989713,1778418642000,-1573.06,0.00034544,60]
[421989717,1778418642000,-1500.0,0.000352,7]
[421989729,1778418642000,-159.73,0.00036138,30]
[421989719,1778418642000,-159.73,0.00035232,7]
[421989731,1778418642000,-159.57,0.00036178,30]
[421989733,1778418642000,-153.0,0.00036497,30]
[421989737,1778418642000,-3615.03,0.000365,7]
[421989739,1778418642000,-150.0,0.00036888,7]
[421989724,1778418642000,-153.0,0.00035497,30]
[421989723,1778418642000,-159.57,0.00035282,7]
[421989721,1778418642000,-152.0,0.0003526,3]
[421989726,1778418642000,-480.0,0.00035497,30]
[421989741,1778418642000,-291.58813059,0.00036888,7]
[421989751,1778418642000,-150.0,0.00036888,7]
[421989753,1778418642000,-150.0,0.00036888,7]
[421989754,1778418642000,-1146.02256466,0.00036906,2]
[421989756,1778418642000,-309.2779459,0.00036906,2]
[421989758,1778418642000,-863.58946345,0.00036906,2]
[421989760,1778418642000,-310.58625824,0.00036906,2]
[421989749,1778418642000,-150.0,0.00036888,7]
[421989747,1778418642000,-186.26583896,0.00036888,7]
[421989743,1778418642000,-150.0,0.00036888,7]
[421989745,1778418642000,-150.0,0.00036888,7]
[421989762,1778418642000,-576.59432604,0.00036906,2]
[421989764,1778418642000,-451.46014752,0.00036906,2]
[421989797,1778418642000,-603.85506578,0.00036906,2]
[421989735,1778418642000,-480.0,0.00036497,30]
[421989801,1778418642000,-892.50225283,0.00036906,2]
[421989846,1778418642000,-5121.0,0.0004,30]
[421989836,1778418642000,-1033.23343941,0.00039647,2]
[421989840,1778418642000,-177.26,0.00039764,7]
[421989835,1778418642000,-152.0,0.00039275,4]
[421989837,1778418642000,-159.83,0.00039764,2]
[421989839,1778418642000,-159.61,0.00039764,2]
[421989838,1778418642000,-177.25,0.00039764,7]
[421989842,1778418642000,-75356.65038207,0.0003997,2]
[421989841,1778418642000,-504.0,0.00039861,4]
[421989843,1778418642000,-325.38106678,0.00039994,12]
[421989848,1778418642000,-10097.18251003,0.0004,4]
[421989854,1778418642000,-326.86371824,0.0004,2]
[421989851,1778418642000,-396.13252379,0.0004,2]
[421989858,1778418642000,-10855.76436332,0.0004,2]
[421989853,1778418642000,-4173.78047695,0.0004,2]
[421989850,1778418642000,-24121.69808519,0.0004,2]
[421989857,1778418642000,-163.88946249,0.0004,2]
[421989856,1778418642000,-319.39059209,0.0004,2]
[421989852,1778418642000,-1584.86391501,0.0004,2]
[421989849,1778418642000,-822.44143076,0.0004,3]
[421989855,1778418642000,-350.40234754,0.0004,3]
[421989859,1778418642000,-1707.70766936,0.0004,2]
[421989860,1778418642000,-515.27396361,0.0004,2]
[421989862,1778418642000,-609.89851925,0.0004,2]
[421989804,1778418642000,-301.4896953,0.00036906,2]
[421989863,1778418642000,-500.51,0.0004,120]
[421989864,1778418642000,-1823.43745571,0.0004,60]
[421989865,1778418642000,-150.0,0.00040174,2]
[421989866,1778418642000,-4112.7694399,0.00040407,2]
[421989847,1778418642000,-368.84587233,0.0004,3]
[421989845,1778418642000,-5000.03069774,0.0004,2]
[421989861,1778418642000,-319.16154716,0.0004,2]
[421989831,1778418642000,-504.0,0.00038928,3]
[421989844,1778418642000,-152.0,0.00039999,7]
[421989803,1778418642000,-725.34798474,0.00036906,2]
[421989798,1778418642000,-300.0,0.00036906,2]
[421989799,1778418642000,-527.2192813,0.00036906,2]
[421989802,1778418642000,-399.47373702,0.00036906,2]
[421989808,1778418642000,-1794.48916065,0.00036906,2]
[421989814,1778418642000,-500.0,0.0003756,5]
[421989812,1778418642000,-182.55779898,0.000372,120]
[421989809,1778418642000,-159.73,0.00037045,2]
[421989811,1778418642000,-193.2,0.000372,30]
[421989819,1778418642000,-159.57,0.00037971,7]
[421989815,1778418642000,-417.0,0.00037666,2]
[421989821,1778418642000,-440.38526098,0.00038,2]
[421989810,1778418642000,-159.57,0.00037075,2]
[421989817,1778418642000,-854.0611487,0.00037923,2]
[421989813,1778418642000,-500.52480189,0.0003756,5]
[421989816,1778418642000,-5529.0,0.000377,5]
[421989826,1778418642000,-221.10424782,0.0003885,30]
[421989827,1778418642000,-221.10424781,0.0003885,30]
[421989829,1778418642000,-159.57,0.00038867,30]
[421989818,1778418642000,-159.73,0.00037951,7]
[421989830,1778418642000,-2000.0,0.000389,7]
[421989833,1778418642000,-324.64,0.0003903,120]
[421989828,1778418642000,-159.73,0.00038858,30]
[421989824,1778418642000,-249.61255565,0.0003885,30]
[421989825,1778418642000,-249.61255565,0.0003885,30]
[421989832,1778418642000,-31268.32473394,0.00039,2]
[421989822,1778418642000,-264.95914625,0.00038356,2]
[421989823,1778418642000,-249.61255565,0.0003885,30]
[421989820,1778418642000,-504.0,0.00037994,2]
[421989834,1778418642000,-312.62,0.00039049,7]
[421989879,1778418643000,-337.37622088,0.0004085,2]
[421989870,1778418643000,-203.0,0.000405,30]
[421989868,1778418643000,-1557.3292909,0.00040407,2]
[421989873,1778418643000,-260.395,0.00040652,13]
[421989869,1778418643000,-139893.0365132,0.000405,30]
[421989871,1778418643000,-227.9175,0.00040652,13]
[421989872,1778418643000,-210.38,0.00040652,13]
[421989867,1778418643000,-2580.571081,0.00040407,2]
[421989880,1778418643000,-1779.0718323,0.0004087,3]
[421989878,1778418643000,-7175.3059135,0.00040834,2]
[421989881,1778418643000,-11777.57508557,0.00040873,2]
[421989874,1778418643000,-1444.0,0.00040658,120]
[421989877,1778418643000,-504.0,0.00040795,10]
[421989875,1778418643000,-417.0,0.00040666,2]
[421989883,1778418643000,-922.18333418,0.00040873,2]
[421989884,1778418643000,-786.16108242,0.00040873,2]
[421989886,1778418643000,-336.34686766,0.00036906,2]
[421989888,1778418643000,-7.28557535,0.00036906,2]
[421989890,1778418643000,-25663.7440877,0.00040873,2]
[421989876,1778418643000,-685.79230504,0.00040709,10]
[421989912,1778418646000,-159.62,0.00029125,2]
[421989920,1778418646000,-159.62,0.00034444,2]
[421989909,1778418646000,-944.528,0.00022668,2]
[421989910,1778418646000,-929.0,0.00025668,2]
[421989911,1778418646000,-929.0,0.00028668,2]
[421989918,1778418646000,-159.62,0.00032671,7]
[421989917,1778418646000,-159.62,0.00031784,2]
[421989919,1778418646000,-159.62,0.00033558,30]
[421989914,1778418646000,-6067.1,0.00030487,10]
[421989916,1778418646000,-929.0,0.00031668,2]
[421989913,1778418646000,-159.62,0.00030011,7]
[421989921,1778418646000,-929.0,0.00034668,2]
[421989924,1778418646000,-1133.48610485,0.00040873,2]
[421989922,1778418646000,-526.36126599,0.00036906,2]
[421989923,1778418646000,-5609.78121152,0.00040873,2]
[421989925,1778418646000,-6179.47354962,0.00014744,2]
[421989926,1778418646000,-159.62,0.00035331,7]
[421989927,1778418646000,-159.62,0.00036217,30]
[421989929,1778418646000,-15712.672927,0.00040873,2]
[421989928,1778418646000,-929.0,0.00037668,2]
[421989915,1778418646000,-159.62,0.00030898,30]
[421989933,1778418732000,500.0,0.00040994,120]
[421989934,1778418742000,1038.29059391,0.00040994,120]
[421989935,1778418743000,2000.0,0.00040994,120]
[421989937,1778418743000,457.24022354,0.00040994,120]
[421989936,1778418743000,500.0,0.00040994,120]
[421989938,1778418778000,166.10461055,0.00040994,120]
[421989942,1778418785000,500.0,0.00040994,120]
[421989941,1778418785000,500.0,0.00040994,120]
[421989940,1778418785000,500.0,0.00040994,120]
[421989939,1778418785000,500.0,0.00040994,120]
[421989945,1778418786000,500.0,0.00040994,120]
[421989944,1778418786000,500.0,0.00040994,120]
[421989943,1778418786000,500.0,0.00040994,120]
[421989946,1778418787000,500.0,0.00040994,120]
[421989948,1778418787000,500.0,0.00040994,120]
[421989947,1778418787000,500.0,0.00040994,120]
[421989951,1778418788000,500.0,0.00040994,120]
[421989950,1778418788000,500.0,0.00040994,120]
[421989949,1778418788000,500.0,0.00040994,120]
[421989955,1778418789000,500.0,0.00040994,120]
[421989954,1778418789000,500.0,0.00040994,120]
[421989953,1778418789000,500.0,0.00040994,120]
[421989952,1778418789000,500.0,0.00040994,120]
[421989959,1778418790000,493.600583,0.00040994,120]
[421989958,1778418790000,500.0,0.00040994,120]
[421989957,1778418790000,172.21028398,0.00040994,120]
[421989956,1778418790000,500.0,0.00040994,120]
[421989960,1778418791000,157.15045164,0.00040994,120]
[421989962,1778418793000,500.0,0.00040994,120]
[421989961,1778418793000,500.0,0.00040994,120]
[421989963,1778418794000,646.41635919,0.00040994,120]
[421989965,1778418799000,173.11824535,0.00040994,120]
[421989966,1778418804000,500.0,0.00040994,120]
[421989968,1778418805000,462.06088352,0.00040994,120]
[421989967,1778418805000,500.0,0.00040994,120]
[421989969,1778418811000,172.47082684,0.00040994,120]
[421989971,1778418817000,500.0,0.00040994,120]
[421989970,1778418817000,500.0,0.00040994,120]
[421989973,1778418818000,318.44296683,0.00040994,120]
[421989972,1778418818000,500.0,0.00040994,120]
[421989975,1778418819000,179.75,0.00040994,120]
[421989974,1778418819000,179.75,0.00040994,120]
[421989976,1778418820000,500.0,0.00040994,120]
[421989977,1778418820000,179.75,0.00040994,120]
[421989980,1778418820000,179.75,0.00040994,120]
[421989979,1778418820000,500.0,0.00040994,120]
[421989981,1778418820000,500.0,0.00040994,120]
[421989978,1778418820000,500.0,0.00040994,120]
[421989985,1778418821000,500.0,0.00040994,120]
[421989984,1778418821000,168.74685244,0.00040994,120]
[421989983,1778418821000,500.0,0.00040994,120]
[421989982,1778418821000,500.0,0.00040994,120]
[421989986,1778418835000,182.27701345,0.00040994,120]
[421989987,1778418838000,163.2025923,0.00040994,120]
[421989989,1778418843000,228.614618,0.00040994,120]
[421989988,1778418843000,500.0,0.00040994,120]
[421989990,1778418849000,1231.58,0.00040994,120]
[421989991,1778418849000,1231.58,0.00040994,120]
[421989993,1778418849000,1231.58,0.00040994,120]
[421989992,1778418849000,1231.58,0.00040994,120]
[421989996,1778418850000,1231.58,0.00040994,120]
[421989995,1778418850000,1231.58,0.00040994,120]
[421989994,1778418850000,1231.58,0.00040994,120]
[421990000,1778418851000,1231.58,0.00040994,120]
[421989999,1778418851000,1231.58,0.00040994,120]
[421989998,1778418851000,1231.58,0.00040994,120]
[421989997,1778418851000,1231.58,0.00040994,120]
[421990003,1778418852000,1231.58,0.00040994,120]
[421990002,1778418852000,1231.58,0.00040994,120]
[421990001,1778418852000,1231.58,0.00040994,120]
[421990005,1778418853000,1231.58,0.00040994,120]
[421990004,1778418853000,1231.58,0.00040994,120]
[421990007,1778418853000,1231.58,0.00040994,120]
[421990006,1778418853000,1231.58,0.00040994,120]
[421990010,1778418854000,1231.58,0.00040994,120]
[421990009,1778418854000,1231.58,0.00040994,120]
[421990008,1778418854000,1231.58,0.00040994,120]
[421990011,1778418854000,1231.58,0.00040994,120]
[421990013,1778418855000,1231.74524335,0.00040994,120]
[421990012,1778418855000,1231.58,0.00040994,120]
[421990015,1778418867000,203.71119441,0.00040994,120]
[421990017,1778418870000,221.78911068,0.00040994,120]
[421990016,1778418870000,157.90120021,0.00040994,120]
[421990019,1778418872000,309.63213272,0.00040994,120]
[421990018,1778418872000,500.0,0.00040994,120]
[421990020,1778418876000,268.89424317,0.00040994,120]
[421990022,1778418876000,500.0,0.00040994,120]
[421990021,1778418876000,500.0,0.00040994,120]
[421990023,1778418877000,601.69964626,0.00040994,120]
[421990024,1778418878000,408.05670276,0.00040994,120]
[421990025,1778418880000,272.29506548,0.00040994,120]
[421990029,1778418881000,1000.0,0.00040994,120]
[421990028,1778418881000,1000.0,0.00040994,120]
[421990027,1778418881000,1000.0,0.00040994,120]
[421990026,1778418881000,166.0649015,0.00040994,120]
[421990033,1778418882000,1000.0,0.00040994,120]
[421990032,1778418882000,1000.0,0.00040994,120]
[421990031,1778418882000,1000.0,0.00040994,120]
[421990030,1778418882000,1000.0,0.00040994,120]
[421990036,1778418883000,1000.0,0.00040994,120]
[421990034,1778418883000,1000.0,0.00040994,120]
[421990035,1778418883000,468.4159681,0.00040994,120]
[421990038,1778418883000,1000.0,0.00040994,120]
[421990039,1778418883000,786.37494262,0.00040994,120]
[421990037,1778418883000,155.7709178,0.00040994,120]
[421990043,1778418887000,503.10785782,0.00040994,120]
[421990042,1778418887000,500.0,0.00040994,120]
[421990041,1778418887000,500.0,0.00040994,120]
[421990040,1778418887000,500.0,0.00040994,120]
[421990044,1778418893000,7911.17,0.00040994,120]
[421990050,1778418894000,7911.17,0.00040994,120]
[421990049,1778418894000,412.83940428,0.00040994,120]
[421990048,1778418894000,500.0,0.00040994,120]
[421990047,1778418894000,7911.17,0.00040994,120]
[421990046,1778418894000,7911.17,0.00040994,120]
[421990045,1778418894000,7911.17,0.00040994,120]
[421990051,1778418895000,7911.17,0.00040994,120]
[421990052,1778418895000,7911.17,0.00040994,120]
[421990055,1778418895000,616.66542449,0.00040994,120]
[421990054,1778418895000,7911.17,0.00040994,120]
[421990056,1778418895000,7911.17,0.00040994,120]
[421990053,1778418895000,500.0,0.00040994,120]
[421990060,1778418896000,7911.17,0.00040994,120]
[421990059,1778418896000,7911.17,0.00040994,120]
[421990058,1778418896000,7911.17,0.00040994,120]
[421990057,1778418896000,7911.17,0.00040994,120]
[421990064,1778418897000,500.0,0.00040994,120]
[421990063,1778418897000,500.0,0.00040994,120]
[421990062,1778418897000,7911.17,0.00040994,120]
[421990061,1778418897000,7911.17,0.00040994,120]
[421990066,1778418898000,500.0,0.00040994,120]
[421990065,1778418898000,500.0,0.00040994,120]
[421990068,1778418898000,514.72837145,0.00040994,120]
[421990067,1778418898000,7911.17,0.00040994,120]
[421990069,1778418898000,7911.17,0.00040994,120]
[421990070,1778418899000,7911.17,0.00040994,120]
[421990073,1778418899000,7911.17,0.00040994,120]
[421990072,1778418899000,7911.17,0.00040994,120]
[421990071,1778418899000,7911.17,0.00040994,120]
[421990075,1778418900000,7911.17,0.00040994,120]
[421990074,1778418900000,7911.17,0.00040994,120]
[421990076,1778418900000,7911.1935384,0.00040994,120]
[421990078,1778418905000,535.57401368,0.00040994,120]
[421990077,1778418905000,500.0,0.00040994,120]
[421990079,1778418907000,156.73197831,0.00040994,120]
[421990080,1778418914000,167.30085585,0.00040994,120]
[421990081,1778418915000,160.20653484,0.00040994,120]
[421990084,1778418915000,500.0,0.00040994,120]
[421990083,1778418915000,500.0,0.00040994,120]
[421990082,1778418915000,500.0,0.00040994,120]
[421990087,1778418916000,500.0,0.00040994,120]
[421990086,1778418916000,500.0,0.00040994,120]
[421990085,1778418916000,500.0,0.00040994,120]
[421990091,1778418917000,500.0,0.00040994,120]
[421990090,1778418917000,500.0,0.00040994,120]
[421990089,1778418917000,500.0,0.00040994,120]
[421990088,1778418917000,161.2464106,0.00040994,120]
[421990092,1778418918000,500.00000016,0.00040994,120]
[421990093,1778418921000,1308.73,0.00040994,120]
[421990096,1778418922000,1308.73,0.00040994,120]
[421990095,1778418922000,1308.73,0.00040994,120]
[421990094,1778418922000,1308.73,0.00040994,120]
[421990097,1778418922000,1308.73,0.00040994,120]
[421990101,1778418923000,1308.73,0.00040994,120]
[421990100,1778418923000,1308.73,0.00040994,120]
[421990099,1778418923000,1308.73,0.00040994,120]
[421990098,1778418923000,1308.73,0.00040994,120]
[421990102,1778418924000,1308.73,0.00040994,120]
[421990103,1778418924000,1308.73,0.00040994,120]
[421990105,1778418924000,1308.73,0.00040994,120]
[421990104,1778418924000,1308.73,0.00040994,120]
[421990108,1778418925000,1308.73,0.00040994,120]
[421990107,1778418925000,1308.73,0.00040994,120]
[421990106,1778418925000,1308.73,0.00040994,120]
[421990112,1778418926000,1308.73,0.00040994,120]
[421990111,1778418926000,1308.73,0.00040994,120]
[421990110,1778418926000,1308.73,0.00040994,120]
[421990109,1778418926000,1308.73,0.00040994,120]
[421990114,1778418927000,1308.73,0.00040994,120]
[421990113,1778418927000,1308.73,0.00040994,120]
[421990115,1778418927000,1308.73,0.00040994,120]
[421990116,1778418927000,1308.78736397,0.00040994,120]
[421990117,1778418930000,500.0,0.00040994,120]
[421990118,1778418930000,313.9494605,0.00040994,120]
[421990123,1778418938000,500.0,0.00040987,120]
[421990122,1778418938000,500.0,0.00040987,120]
[421990120,1778418938000,500.0,0.00040987,120]
[421990121,1778418938000,188.67300266,0.00040987,120]
[421990119,1778418938000,500.0,0.00040987,120]
[421990125,1778418939000,500.0,0.00040987,120]
[421990124,1778418939000,500.0,0.00040987,120]
[421990128,1778418939000,500.0,0.00040987,120]
[421990129,1778418939000,500.0,0.00040987,120]
[421990127,1778418939000,500.0,0.00040987,120]
[421990126,1778418939000,500.0,0.00040987,120]
[421990135,1778418940000,500.0,0.00040987,120]
[421990134,1778418940000,500.0,0.00040987,120]
[421990133,1778418940000,220.32095979,0.00040987,120]
[421990132,1778418940000,500.0,0.00040987,120]
[421990131,1778418940000,500.0,0.00040987,120]
[421990130,1778418940000,500.0,0.00040987,120]
[421990138,1778418941000,500.0,0.00040987,120]
[421990136,1778418941000,500.0,0.00040987,120]
[421990137,1778418941000,500.0,0.00040987,120]
[421990140,1778418941000,500.0,0.00040987,120]
[421990141,1778418941000,500.0,0.00040987,120]
[421990142,1778418941000,498.87232747,0.00040987,120]
[421990143,1778418941000,500.0,0.00040987,120]
[421990139,1778418941000,500.0,0.00040987,120]
[421990145,1778418942000,538.02823188,0.00040987,120]
[421990144,1778418942000,500.0,0.00040987,120]
[421990146,1778418973000,177.53292859,0.00040987,120]
[421990149,1778418980000,500.0,0.00040987,120]
[421990148,1778418980000,500.0,0.00040987,120]
[421990147,1778418980000,500.0,0.00040987,120]
[421990150,1778418981000,500.0,0.00040987,120]
[421990152,1778418981000,500.0,0.00040987,120]
[421990151,1778418981000,500.0,0.00040987,120]
[421990153,1778418982000,500.0,0.00040987,120]
[421990157,1778418983000,500.0,0.00040987,120]
[421990156,1778418983000,500.0,0.00040987,120]
[421990155,1778418983000,500.0,0.00040987,120]